bitfinex/quotes_ETHUSD_20240824
["timestamp","ask_amount","ask_price","bid_price","bid_amount"]
[1724538128193,5.71983,2762.6,2762.3,0.04951323]
[1724538128644,4.5779,2762.5,2762.3,0.04951323]
[1724538128788,5.71983,2762.6,2762.5,0.04951323]
[1724538128789,1.58,2762.6,2762.5,0.04951323]
[1724538129850,1.58,2762.7,2762.5,0.04951323]
[1724538129995,1.58,2762.7,2762.6,7.23954]
[1724538130186,1.58,2762.7,2762.6,7.96844532]
[1724538131053,1.58,2762.7,2762.6,12.45284532]
[1724538131392,1.58,2763.6,2763.5,0.04951323]
[1724538131641,1.58,2763.8,2763.5,0.04951323]
[1724538131802,1.58,2763.8,2763.7,0.04951323]
[1724538132009,2.44251491,2763.8,2763.7,0.04951323]
[1724538133421,1.58,2763.8,2763.7,0.04951323]
[1724538136435,1.58,2763.8,2763.0,0.04951323]
[1724538136436,8.17113,2763.7,2763.0,0.04951323]
[1724538136737,3.61894,2763.3,2763.0,0.04951323]
[1724538137529,8.17182,2763.1,2762.8,0.04951323]
[1724538137599,6.949882,2763.1,2763.0,0.04951323]
[1724538137938,3.61933,2763.0,2762.8,0.04951323]
[1724538138428,3.61938,2762.9,2762.8,0.04951323]
[1724538140242,10.37693107,2763.1,2762.6,0.04951323]
[1724538140408,3.61964,2762.7,2762.6,0.04951323]
[1724538140689,7.23897,2762.9,2762.6,0.04951323]
[1724538140961,3.6196,2762.8,2762.6,0.04951323]
[1724538141250,3.61964,2762.7,2762.6,0.04951323]
[1724538142118,3.61951,2762.8,2762.6,0.04951323]
[1724538142858,4.15578411,2762.8,2762.6,0.04951323]
[1724538143020,3.61964,2762.7,2762.6,0.04951323]
[1724538143717,3.61951,2762.8,2762.6,0.04951323]
[1724538144625,3.61941,2762.9,2762.6,0.04951323]
[1724538145452,3.61961,2762.8,2762.6,0.04951323]
[1724538145629,3.61964,2762.7,2762.6,0.04951323]
[1724538147167,1.21886171,2762.8,2762.0,12.22]
[1724538147168,1.58,2763.1,2763.0,0.04951323]
[1724538147674,1.58,2763.5,2763.3,0.04951323]
[1724538148088,1.58,2763.6,2763.3,0.04951323]
[1724538149065,1.58,2763.6,2762.9,7.31]
[1724538149066,1.58,2763.6,2763.5,0.04951323]
[1724538149367,4.138289,2763.6,2763.5,0.04951323]
[1724538149571,3.61846,2763.6,2763.5,0.04951323]
[1724538151171,1.58,2763.7,2763.5,0.04951323]
[1724538151826,3.61846,2763.6,2763.5,0.04951323]
[1724538154386,1.58,2763.7,2763.5,0.04951323]
[1724538155370,5.19841,2763.7,2763.5,0.04951323]
[1724538155884,3.61846,2763.6,2763.5,0.04951323]
[1724538155967,3.61873,2763.4,2763.3,0.04951323]
[1724538156331,2.461662,2763.7,2763.3,0.04951323]
[1724538156332,6.080062,2763.7,2763.3,0.04951323]
[1724538156531,3.61867,2763.5,2763.3,0.04951323]
[1724538156778,7.23739,2763.5,2763.3,0.04951323]
[1724538157000,0.723739,2763.4,2763.3,0.04951323]
[1724538157133,3.61867,2763.5,2763.3,0.04951323]
[1724538157670,3.61873,2763.4,2763.3,0.04951323]
[1724538158474,3.61873,2763.4,2763.0,0.04951323]
[1724538158475,3.61889,2763.3,2763.0,0.04951323]
[1724538158661,3.61951,2762.8,2762.7,0.04951323]
[1724538158971,15.07576907,2762.8,2762.7,0.04951323]
[1724538159170,11.45625907,2762.8,2762.7,0.04951323]
[1724538159549,9.60921,2762.8,2762.7,0.04951323]
[1724538159935,5.19951,2762.8,2762.7,0.04951323]
[1724538160366,1.58,2762.8,2762.7,0.04951323]
[1724538163270,1.58,2762.9,2762.7,0.50083455]
[1724538164452,1.58,2762.9,2762.7,4.12047455]
[1724538168184,1.58,2762.9,2762.7,0.50083455]
[1724538168386,3.61874,2763.4,2763.2,0.04951323]
[1724538168387,1.58,2763.3,2763.2,0.04951323]
[1724538169366,13.10182,2763.3,2763.2,0.04951323]
[1724538169689,3.61912,2763.1,2763.0,0.04951323]
[1724538170095,7.23809,2763.2,2763.0,0.04951323]
[1724538170867,3.61912,2763.1,2763.0,0.04951323]
[1724538171069,4.929341,2763.1,2763.0,0.04951323]
[1724538172128,4.929341,2763.1,2762.6,0.04951323]
[1724538172129,3.61964,2762.7,2762.6,0.04951323]
[1724538172335,3.61953,2762.8,2762.6,0.04951323]
[1724538173572,3.6193,2763.0,2762.9,0.04951323]
[1724538173819,2.890221,2763.1,2762.9,0.04951323]
[1724538175027,1.58,2763.1,2762.9,0.04951323]
[1724538175581,5.19922,2763.1,2762.9,0.04951323]
[1724538175929,1.58,2763.1,2762.9,0.04951323]
[1724538177109,4.4151,2763.0,2762.7,0.04951323]
[1724538177433,3.61951,2762.8,2762.7,0.04951323]
[1724538177940,8.562429,2762.8,2762.7,0.04951323]
[1724538178092,4.942919,2762.8,2762.7,0.04951323]
[1724538181214,8.562429,2762.8,2762.7,0.04951323]
[1724538181416,4.942919,2762.8,2762.7,0.04951323]
[1724538181599,8.562429,2762.8,2762.7,0.04951323]
[1724538183198,10.142429,2762.8,2762.7,0.04951323]
[1724538184373,6.522919,2762.8,2762.7,0.04951323]
[1724538185499,10.142429,2762.8,2762.7,0.04951323]
[1724538185824,6.522919,2762.8,2762.7,0.04951323]
[1724538187464,7.23954,2762.6,2762.5,0.04951323]
[1724538187759,7.24008,2762.4,2762.3,0.04951323]
[1724538188095,3.6203,2762.2,2762.1,0.04951323]
[1724538188217,5.2003,2762.2,2762.1,0.04951323]
[1724538188922,5.2003,2762.2,2761.8,0.04951323]
[1724538188923,3.62069,2761.9,2761.8,0.04951323]
[1724538189155,0.52003,2762.1,2761.8,0.04951323]
[1724538189459,4.14047,2762.1,2761.8,0.04951323]
[1724538190365,3.62057,2762.0,2761.8,0.04951323]
[1724538191629,5.20035,2762.2,2762.0,0.04951323]
[1724538192037,1.58,2762.1,2762.0,0.04951323]
[1724538196862,1.58,2762.1,2762.0,8.18847323]
[1724538197059,1.58,2762.1,2762.0,9.36937955]
[1724538197561,1.58,2762.8,2762.7,0.04951323]
[1724538197793,1.58,2763.1,2763.0,0.04951323]
[1724538198275,1.58,2763.4,2763.1,8.13743]
[1724538198394,1.58,2763.8,2763.2,0.81869432]
[1724538198601,1.58,2763.8,2763.1,8.13743]
[1724538198796,5.1982,2763.8,2763.7,0.04951323]
[1724538199001,8.8164,2763.8,2763.7,0.04951323]
[1724538199181,1.58,2763.8,2763.7,0.04951323]
[1724538201521,3.61846,2763.6,2763.5,0.04951323]
[1724538201859,8.217086,2763.6,2763.5,0.04951323]
[1724538202120,4.598626,2763.6,2763.5,0.04951323]
[1724538204043,6.178626,2763.6,2763.5,0.04951323]
[1724538205746,9.797086,2763.6,2763.5,0.04951323]
[1724538205961,6.178626,2763.6,2763.5,0.04951323]
[1724538206750,9.797086,2763.6,2763.5,0.04951323]
[1724538208213,14.400286,2763.6,2763.5,0.04951323]
[1724538208803,10.781826,2763.6,2763.5,0.04951323]
[1724538209567,14.400286,2763.6,2763.5,0.04951323]
[1724538210251,10.781826,2763.6,2763.5,0.04951323]
[1724538212586,6.178626,2763.6,2763.5,0.04951323]
[1724538212896,5.19846,2763.6,2763.5,0.04951323]
[1724538214502,8.81692,2763.6,2763.5,0.04951323]
[1724538214666,6.2258,2763.6,2763.1,0.04951323]
[1724538214876,3.42704907,2763.4,2763.1,0.04951323]
[1724538215069,6.7758,2763.5,2763.1,0.04951323]
[1724538215401,0.67758,2763.4,2763.1,0.04951323]
[1724538215605,3.61899,2763.2,2763.1,0.04951323]
[1724538216302,3.61886,2763.3,2763.1,0.04951323]
[1724538216657,3.61899,2763.2,2763.1,0.04951323]
[1724538219107,13.46378,2763.2,2763.1,0.04951323]
[1724538219255,15.22062091,2763.2,2763.1,0.04951323]
[1724538219455,7.98264091,2763.2,2762.6,0.04951323]
[1724538219649,8.26544,2762.7,2762.6,0.04951323]
[1724538219856,9.84544,2762.7,2762.6,0.04951323]
[1724538220058,10.829984,2762.7,2762.6,0.04951323]
[1724538220355,10.829984,2762.7,2762.2,0.04951323]
[1724538220356,6.54159307,2762.7,2762.2,0.04951323]
[1724538220567,3.62017,2762.3,2762.2,0.04951323]
[1724538221607,3.62014,2762.4,2762.2,0.04951323]
[1724538222010,7.24028,2762.4,2762.2,0.04951323]
[1724538222171,8.428888,2762.4,2762.2,0.04951323]
[1724538222708,3.62017,2762.3,2762.2,0.04951323]
[1724538224899,1.58,2762.3,2762.2,0.04951323]
[1724538225861,5.20017,2762.3,2762.2,0.04951323]
[1724538227406,1.58,2762.3,2762.2,0.04951323]
[1724538227556,5.20017,2762.3,2762.2,0.04951323]
[1724538227786,6.2010618,2762.3,2762.2,0.04951323]
[1724538228781,7.24086,2762.1,2762.0,0.04951323]
[1724538228971,8.82086,2762.1,2762.0,0.04951323]
[1724538229783,5.20043,2762.1,2762.0,0.04951323]
[1724538229979,6.64716518,2762.1,2762.0,0.04951323]
[1724538233310,1.58,2762.1,2762.0,0.04951323]
[1724538234580,5.20043,2762.1,2762.0,0.04951323]
[1724538235908,1.58,2762.1,2762.0,0.04951323]
[1724538237600,5.20043,2762.1,2762.0,0.04951323]
[1724538237968,1.58,2762.1,2762.0,0.04951323]
[1724538239927,5.720462,2762.1,2762.0,0.04951323]
[1724538240109,13.715692,2762.1,2762.0,0.04951323]
[1724538240417,10.095262,2762.1,2762.0,0.04951323]
[1724538240666,5.720462,2762.1,2762.0,0.04951323]
[1724538241203,9.340892,2762.1,2762.0,0.04951323]
[1724538241897,3.6208,2761.9,2761.4,7.31]
[1724538242101,3.62104,2761.7,2761.2,12.22]
[1724538243320,3.62201,2760.9,2760.7,7.31]
[1724538243608,8.10941,2760.9,2760.7,7.31]
[1724538243793,3.62179,2761.1,2760.7,7.31]
[1724538244253,5.91336577,2761.0,2760.1,8.94229212]
[1724538244391,5.91336577,2761.0,2759.0,21.21547932]
[1724538244392,0.7,2757.9,2757.8,1.8892755]
[1724538244608,3.62673,2757.3,2755.6,1.13417455]
[1724538244807,3.62754,2756.7,2755.0,8.37177055]
[1724538245005,3.62754,2756.7,2755.3,3.42704907]
[1724538245006,3.6276,2756.7,2755.3,3.42704907]
[1724538245249,1.88069945,2756.3,2755.9,3.42704907]
[1724538245508,2.25683935,2756.9,2755.9,3.42704907]
[1724538245509,1.12841967,2756.5,2756.0,5.03310375]
[1724538245845,1.12841967,2756.5,2756.0,4.6217]
[1724538246465,3.62702,2757.1,2756.0,4.6217]
[1724538247645,3.62729,2756.9,2756.1,0.46217]
[1724538247850,3.62768,2756.6,2756.0,4.6217]
[1724538248038,3.62804,2756.4,2756.0,4.6217]
[1724538248236,3.62706,2757.1,2756.0,4.6217]
[1724538248435,3.62718,2757.0,2756.0,4.6217]
[1724538248763,3.62716,2757.0,2756.1,0.46217]
[1724538249075,3.62701,2757.1,2756.1,0.46217]
[1724538249076,3.62727,2756.9,2756.1,0.46217]
[1724538249219,3.6274,2756.8,2756.1,0.46217]
[1724538249747,1.48048677,2756.8,2756.1,8.05276862]
[1724538250115,1.48048677,2756.8,2756.2,3.62813]
[1724538250317,1.48048677,2756.8,2756.1,3.46217]
[1724538250519,1.48048677,2756.8,2756.1,3.0]
[1724538251765,1.48048677,2756.8,2756.0,4.6217]
[1724538252393,3.62756,2756.7,2756.0,4.6217]
[1724538253875,1.48048677,2756.7,2756.0,4.6217]
[1724538254388,1.48048677,2756.7,2755.5,8.07979]
[1724538254684,3.62794,2756.4,2755.5,9.250705]
[1724538255070,1.48048677,2756.3,2755.5,5.621615]
[1724538255273,5.10853677,2756.3,2755.5,5.621615]
[1724538256687,5.10853677,2756.3,2755.5,5.571615]
[1724538257187,5.09603621,2756.3,2755.5,5.571615]
[1724538258583,3.6282,2756.2,2755.5,5.571615]
[1724538259994,1.46798621,2756.3,2756.0,4.59059862]
[1724538260202,1.46798621,2756.3,2755.6,8.51068212]
[1724538260404,1.46798621,2756.3,2755.6,3.9200835]
[1724538260613,1.45798621,2756.2,2755.6,3.9200835]
[1724538262028,3.6269,2757.2,2756.0,3.62843]
[1724538262194,3.6269,2757.2,2755.6,3.9200835]
[1724538262195,1.52,2757.2,2756.2,4.3128]
[1724538262620,3.6266,2757.4,2756.5,8.21833862]
[1724538262779,3.6266,2757.4,2756.6,3.0]
[1724538262983,1.52,2757.3,2756.6,3.0]
[1724538263184,5.14678,2757.3,2756.5,5.31933212]
[1724538263469,3.627,2757.1,2756.5,5.31933212]
[1724538263827,1.52,2756.5,2756.2,4.3128]
[1724538264140,4.6446,2759.1,2756.3,3.53253799]
[1724538264283,3.6263,2757.7,2756.7,3.62743]
[1724538264487,3.626,2757.9,2756.8,6.62735]
[1724538264726,3.626,2757.9,2756.8,3.0]
[1724538264895,3.62621,2757.7,2756.9,3.62725]
[1724538265095,3.62636,2757.6,2756.7,6.62749]
[1724538265329,3.6266,2757.5,2756.7,3.0]
[1724538265529,3.62621,2757.7,2756.9,3.6272]
[1724538266025,0.3626,2757.8,2757.2,3.62683]
[1724538266226,3.62604,2757.9,2757.1,4.3128]
[1724538266528,3.62611,2757.8,2757.1,4.3128]
[1724538266883,3.62562,2758.2,2757.2,3.62685]
[1724538267265,3.62595,2757.9,2757.1,7.93972]
[1724538267398,3.6259,2758.0,2757.1,7.93972]
[1724538267602,4.351049,2758.0,2757.1,7.93972]
[1724538267816,0.725149,2758.0,2757.2,3.62673]
[1724538268101,3.62593,2758.0,2757.1,4.3128]
[1724538268462,3.62672,2757.4,2756.6,7.3128]
[1724538268616,3.62646,2757.6,2756.6,10.94044]
[1724538268818,3.62647,2757.5,2756.6,10.94044]
[1724538269119,3.62698,2757.2,2756.6,4.3128]
[1724538269318,0.725293,2757.5,2756.6,4.3128]
[1724538269516,0.55,2757.4,2756.1,4.3128]
[1724538269716,3.62749,2756.8,2756.1,4.3128]
[1724538270536,0.55,2757.4,2756.0,17.53933212]
[1724538270537,3.6278,2756.5,2756.0,17.53933212]
[1724538270740,0.36278,2756.4,2756.0,5.31933212]
[1724538270921,3.62755,2756.7,2756.0,5.31933212]
[1724538271126,3.62774,2756.6,2756.0,5.31933212]
[1724538271326,3.62782,2756.5,2756.0,5.31933212]
[1724538271545,3.628,2756.4,2756.0,5.31933212]
[1724538271746,3.62748,2756.8,2756.0,5.31933212]
[1724538271919,3.62767,2756.6,2756.0,5.31933212]
[1724538272346,0.362748,2756.7,2756.0,13.47487212]
[1724538272748,0.362748,2756.7,2756.0,9.84643212]
[1724538272928,3.62775,2756.6,2756.0,9.84643212]
[1724538273136,3.6278,2756.5,2756.0,9.84643212]
[1724538274248,3.62805,2756.3,2756.0,5.31933212]
[1724538274779,3.62831,2756.1,2756.0,5.31933212]
[1724538274961,3.62805,2756.3,2755.5,22.06643212]
[1724538275269,4.3896478,2756.5,2755.5,22.06643212]
[1724538275470,3.62708,2757.1,2755.5,17.53933212]
[1724538275471,3.62872,2755.8,2755.5,17.53933212]
[1724538275633,3.62867,2755.9,2755.5,17.53933212]
[1724538277620,3.6288,2755.8,2755.2,5.31933212]
[1724538277820,3.62849,2756.0,2755.3,3.62936]
[1724538278372,3.62849,2756.0,2755.2,5.31933212]
[1724538278373,4.354153,2756.0,2755.2,5.31933212]
[1724538278661,4.354153,2756.0,2755.2,8.94881212]
[1724538278871,4.354153,2756.0,2755.3,3.62934]
[1724538279065,4.354153,2756.0,2755.2,5.31933212]
[1724538279568,3.6286,2755.9,2755.2,5.31933212]
[1724538279736,4.4268753,2755.9,2755.2,5.31933212]
[1724538280062,0.7982753,2755.9,2755.2,8.94882212]
[1724538280245,3.62848,2756.0,2755.2,8.94882212]
[1724538280560,4.4219,2757.1,2755.3,3.51052247]
[1724538280766,3.62778,2756.5,2755.8,3.62869]
[1724538280968,3.62777,2756.6,2755.8,3.62869]
[1724538281764,3.62777,2756.6,2755.9,4.5271]
[1724538281946,3.62744,2756.8,2755.9,5.3051165]
[1724538282149,3.62761,2756.7,2755.9,5.3051165]
[1724538282355,3.62761,2756.7,2755.9,8.9336865]
[1724538282530,3.62704,2757.1,2756.3,3.62794]
[1724538282733,3.62704,2757.1,2755.9,5.3051165]
[1724538282734,3.62724,2757.0,2756.2,5.31933212]
[1724538282947,3.62739,2756.8,2756.2,5.31933212]
[1724538283465,3.989954,2757.0,2756.2,5.31933212]
[1724538283765,3.989914,2757.0,2756.2,5.31933212]
[1724538283949,3.6275,2756.8,2756.2,5.31933212]
[1724538284557,7.617144,2757.0,2756.2,5.31933212]
[1724538284713,3.989914,2757.0,2756.3,3.62797]
[1724538284923,3.62719,2757.0,2756.3,3.62797]
[1724538285148,3.62728,2756.9,2756.2,5.31933212]
[1724538285359,3.62719,2757.0,2756.2,5.31933212]
[1724538285559,3.62752,2756.8,2756.2,5.31933212]
[1724538285760,7.25502,2756.8,2756.2,5.31933212]
[1724538286091,3.6275,2756.8,2756.2,5.31933212]
[1724538286262,7.255,2756.8,2756.2,5.31933212]
[1724538286428,3.62662,2757.4,2756.2,5.31933212]
[1724538286429,3.62805,2756.3,2756.2,5.31933212]
[1724538286638,3.62805,2756.3,2755.9,4.5271]
[1724538287961,3.62779,2756.5,2755.9,4.5271]
[1724538288162,7.2557,2756.5,2755.9,4.5271]
[1724538288460,3.62779,2756.5,2755.9,4.5271]
[1724538288674,4.063119,2756.5,2755.9,4.5271]
[1724538289576,0.33861059,2756.4,2755.9,4.5271]
[1724538289778,3.62779,2756.5,2755.9,4.5271]
[1724538290173,0.33859701,2756.4,2755.9,4.5271]
[1724538290483,0.88034708,2756.3,2755.9,4.5271]
[1724538290971,0.88034708,2756.2,2755.9,4.5271]
[1724538291133,0.33859503,2756.1,2755.9,4.5271]
[1724538291332,0.33859503,2756.0,2755.9,4.5271]
[1724538292344,0.75227978,2756.4,2755.9,4.5271]
[1724538292547,0.33857574,2756.3,2755.9,4.5271]
[1724538292875,0.88029706,2756.2,2755.9,4.5271]
[1724538293074,0.33857574,2756.1,2755.9,4.5271]
[1724538293283,0.33857574,2756.0,2755.9,4.5271]
[1724538293694,0.75227978,2756.4,2755.9,4.5271]
[1724538294007,0.88029573,2756.3,2755.9,4.5271]
[1724538294308,0.33857528,2756.2,2755.9,4.5271]
[1724538294471,0.33857528,2756.1,2755.9,8.15565]
[1724538294671,0.75227978,2756.3,2755.9,8.15565]
[1724538294871,0.33855853,2756.2,2756.0,3.62841]
[1724538295206,0.33855853,2756.1,2756.0,3.62841]
[1724538295519,0.75227978,2756.4,2756.0,3.62841]
[1724538295681,1.68715643,2756.4,2756.1,3.62831]
[1724538296011,0.67692844,2756.3,2756.1,3.62831]
[1724538296166,0.33846003,2756.2,2756.1,3.62831]
[1724538296664,0.33846841,2756.3,2756.2,3.62818]
[1724538296864,0.33846841,2756.3,2756.2,7.25636]
[1724538297297,0.33846841,2756.3,2756.2,3.62818]
[1724538298226,0.33846841,2756.3,2756.0,3.62838]
[1724538298369,0.33846841,2756.3,2755.9,4.5271]
[1724538298575,0.33846841,2756.3,2755.9,8.15559]
[1724538299392,0.33846841,2756.3,2756.1,3.62828]
[1724538300487,0.33846841,2756.3,2756.2,7.25636]
[1724538300686,0.33846841,2756.3,2756.2,12.51756]
[1724538300890,0.33846841,2756.3,2756.2,15.51756]
[1724538301359,0.33846841,2756.3,2755.9,3.62856]
[1724538301730,0.33846841,2756.3,2756.0,3.62841]
[1724538301930,0.75227978,2756.5,2756.0,3.62841]
[1724538302133,0.93832052,2756.5,2756.0,3.62841]
[1724538302451,0.18604074,2756.4,2756.0,3.62841]
[1724538303363,0.18604074,2756.4,2755.8,12.51847]
[1724538303519,0.75227978,2756.4,2755.9,3.0]
[1724538303736,0.75227978,2756.5,2755.9,6.62856]
[1724538303942,0.12368589,2756.4,2755.9,6.62856]
[1724538304255,0.87596567,2756.4,2755.9,6.62856]
[1724538304936,0.87596567,2756.4,2755.9,3.0]
[1724538305202,0.75227978,2756.2,2755.7,5.31933212]
[1724538305366,0.87596567,2756.1,2755.7,5.31933212]
[1724538305689,0.68390786,2756.0,2755.7,5.31933212]
[1724538305890,0.75227978,2756.1,2755.7,5.31933212]
[1724538306184,0.1004121,2756.0,2755.7,8.94806212]
[1724538306354,0.75227978,2756.2,2755.9,3.62857]
[1724538306766,0.85263404,2756.2,2755.9,3.62857]
[1724538307378,0.10035426,2756.2,2756.1,8.88951]
[1724538307885,3.62794,2756.4,2755.7,20.77048227]
[1724538308091,0.8526281,2756.3,2755.8,3.0]
[1724538308296,1.3952881,2756.2,2755.8,3.0]
[1724538308442,0.64304164,2756.1,2755.7,5.31933212]
[1724538308639,0.75227978,2756.0,2755.7,5.31933212]
[1724538308863,0.1004063,2755.9,2755.7,5.31933212]
[1724538309065,0.64307736,2755.8,2755.3,5.31933212]
[1724538309262,0.85395007,2755.7,2755.2,3.62948]
[1724538309500,0.75354377,2755.8,2755.2,3.62948]
[1724538309706,0.75354377,2755.8,2755.1,3.62954]
[1724538309707,0.8539765,2755.7,2755.3,3.62934]
[1724538310023,0.75354377,2755.8,2755.3,3.6293]
[1724538310189,0.75354377,2755.9,2755.3,4.3364943]
[1724538310391,0.75354377,2755.9,2755.1,3.62955]
[1724538310392,0.75354377,2755.7,2755.1,3.62955]
[1724538310585,0.75354377,2755.8,2755.4,3.62921]
[1724538310799,1.39656502,2755.7,2755.1,3.62956]
[1724538311117,1.29616363,2755.6,2755.1,3.62956]
[1724538311335,0.75354377,2755.6,2755.1,3.62956]
[1724538311617,0.75354377,2755.6,2755.2,3.62949]
[1724538311832,1.39669685,2755.6,2755.2,3.62949]
[1724538311974,0.75354377,2755.7,2755.2,3.62949]
[1724538312177,0.64309288,2755.6,2755.2,3.62949]
[1724538312410,0.64309288,2755.6,2755.5,5.7722]
[1724538312411,0.54278256,2755.6,2755.5,5.7722]
[1724538312612,0.75354377,2755.9,2755.5,9.4012]
[1724538313018,0.75354377,2755.9,2755.6,3.62891]
[1724538313320,1.12841967,2756.1,2755.7,3.6288]
[1724538313321,0.75354377,2756.1,2755.7,3.6288]
[1724538313527,1.39748186,2756.0,2755.5,9.40124]
[1724538313683,1.39748186,2755.9,2755.6,3.0]
[1724538313883,0.10051527,2755.8,2755.6,3.0]
[1724538314230,0.75354377,2755.9,2755.6,3.0]
[1724538314524,0.64441544,2755.8,2755.1,9.40176]
[1724538314724,0.64441544,2755.8,2755.1,3.62956]
[1724538314725,1.12841967,2755.6,2755.1,3.62956]
[1724538314926,0.64441544,2755.5,2755.1,3.62956]
[1724538315113,1.39795921,2755.4,2755.1,3.62956]
[1724538315426,1.39795921,2755.4,2755.0,5.31933212]
[1724538315427,0.10075078,2755.3,2755.0,5.31933212]
[1724538315727,0.75354377,2755.4,2755.0,8.94908212]
[1724538315926,0.10074975,2755.3,2755.2,3.6295]
[1724538316132,0.75354377,2755.5,2755.3,3.62934]
[1724538316437,0.10071482,2755.4,2755.3,3.62934]
[1724538316639,0.75354377,2755.6,2755.4,3.62923]
[1724538316789,0.75354377,2755.6,2755.5,3.6291]
[1724538317135,1.39833851,2755.6,2755.5,7.2582]
[1724538317427,0.10068727,2755.6,2755.5,7.78177648]
[1724538317732,0.75354377,2755.7,2755.5,4.15267648]
[1724538318037,0.75354377,2755.8,2755.5,7.78168648]
[1724538318213,0.09990516,2755.7,2755.6,7.25786]
[1724538318421,0.75354377,2755.9,2755.8,3.62871]
[1724538318602,1.39693503,2755.9,2755.8,3.62871]
[1724538319035,1.39693503,2755.9,2755.6,4.98422365]
[1724538319236,1.39899996,2755.8,2755.6,4.98422365]
[1724538319528,0.7556087,2755.9,2755.6,8.61309365]
[1724538319695,0.64345003,2755.8,2755.6,8.61309365]
[1724538319901,0.7556087,2756.0,2755.9,3.62857]
[1724538320107,0.7556087,2756.3,2756.2,3.62818]
[1724538320308,0.64340288,2756.3,2756.2,6.62818]
[1724538320645,0.7556087,2756.5,2756.2,7.653732]
[1724538320845,0.8502045,2756.5,2756.3,3.0]
[1724538320993,5.56574496,2756.4,2755.6,3.62884]
[1724538321194,0.75570593,2756.0,2755.5,5.7722]
[1724538321441,0.09461782,2755.9,2755.5,9.40121]
[1724538321621,0.09461868,2755.9,2755.6,3.62896]
[1724538321811,0.75570593,2756.0,2755.6,3.62896]
[1724538322145,3.6291,2755.6,2754.8,5.7722]
[1724538322298,0.75577679,2755.4,2754.8,5.7722]
[1724538322494,0.75577679,2755.4,2755.0,3.62976]
[1724538322711,0.85041488,2755.3,2754.8,9.40215]
[1724538322913,0.75577679,2755.3,2754.9,3.62987]
[1724538323448,0.75577679,2755.3,2754.5,3.63032]
[1724538323449,0.75577679,2755.1,2754.5,3.63032]
[1724538323653,0.75577679,2755.1,2754.7,3.63015]
[1724538323948,0.85042769,2755.0,2754.7,3.63015]
[1724538324110,0.75577679,2755.0,2754.7,3.63015]
[1724538324308,0.75577679,2755.1,2754.7,3.63015]
[1724538324795,0.0946529,2755.0,2754.7,3.63015]
[1724538324995,0.75577679,2755.1,2754.7,3.63015]
[1724538325195,0.09465297,2755.0,2754.7,3.63015]
[1724538325428,0.75577679,2755.1,2754.7,3.63015]
[1724538326290,0.75577679,2755.2,2754.7,3.63015]
[1724538326492,0.09465089,2755.1,2754.5,3.63032]
[1724538326694,0.75577679,2755.1,2754.5,3.63032]
[1724538327457,3.62995,2754.9,2754.1,5.31933212]
[1724538327742,4.38600679,2754.7,2754.1,5.31933212]
[1724538328336,3.63044,2754.5,2754.0,0.1294192]
[1724538328542,0.85045807,2754.4,2754.0,0.1294192]
[1724538328695,1.31723312,2754.4,2754.0,0.1294192]
[1724538328895,0.85045932,2754.3,2754.0,0.1294192]
[1724538329097,6.1587705,2754.2,2754.0,0.1294192]
[1724538329345,3.63068,2754.3,2754.0,0.1294192]
[1724538329346,4.38645679,2754.3,2754.0,0.1294192]
[1724538329813,4.48128831,2754.2,2754.0,0.1294192]
[1724538330013,5.36730577,2754.2,2754.0,0.1294192]
[1724538330217,7.2619,2754.1,2754.0,0.1294192]
[1724538330446,1.73648577,2754.2,2754.0,0.1294192]
[1724538330743,3.63095,2754.1,2754.0,0.1294192]
[1724538331167,0.75577679,2754.2,2754.0,0.1294192]
[1724538331444,8.93876,2754.5,2754.0,0.1294192]
[1724538331445,9.69127388,2754.5,2754.0,0.1294192]
[1724538331600,3.63072,2754.3,2754.0,0.1294192]
[1724538331805,0.75251388,2754.5,2754.0,0.1294192]
[1724538332006,4.38276388,2754.7,2754.0,0.1294192]
[1724538332418,3.6303,2754.6,2754.0,0.1294192]
[1724538332612,3.63025,2754.7,2754.0,0.1294192]
[1724538332820,6.44917082,2754.9,2754.0,0.1294192]
[1724538332821,9.70283388,2754.9,2754.1,3.63088]
[1724538333041,8.95032,2754.9,2754.1,3.63088]
[1724538333244,0.75251388,2755.0,2754.0,5.97337912]
[1724538333443,4.75839082,2755.2,2754.0,5.97337912]
[1724538333444,3.62962,2755.2,2754.4,3.63045]
[1724538333799,6.07291388,2755.3,2754.5,0.07260293]
[1724538334056,1.12877082,2755.5,2754.5,0.07260293]
[1724538334057,1.8812847,2755.5,2754.5,5.4679]
[1724538334220,1.8812847,2755.5,2754.8,3.63]
[1724538334553,4.38161388,2755.5,2754.5,9.09829]
[1724538334703,3.6291,2755.5,2754.6,3.0]
[1724538334908,3.6291,2755.5,2754.7,4.839969]
[1724538335116,4.38161388,2755.5,2754.7,4.839969]
[1724538336360,6.82542776,2755.8,2754.8,0.0725928]
[1724538336361,0.75251388,2755.6,2754.8,0.0725928]
[1724538336647,3.62873,2755.8,2754.9,3.62983]
[1724538336957,4.38114388,2755.9,2755.0,3.992703]
[1724538337302,3.72337019,2755.8,2755.0,3.992703]
[1724538337500,3.62873,2755.8,2755.0,3.992703]
[1724538337904,4.38114388,2755.9,2755.0,3.992703]
[1724538338205,0.75251388,2755.8,2755.0,3.992703]
[1724538338530,3.62872,2755.8,2755.0,3.992703]
[1724538338737,4.38123388,2755.8,2755.0,3.992703]
[1724538340083,3.62885,2755.7,2755.0,0.362983]
[1724538340266,3.62885,2755.7,2755.0,3.992733]
[1724538340787,4.38123388,2755.8,2755.0,3.992733]
[1724538341294,0.75251388,2755.8,2755.0,3.992733]
[1724538341484,0.75251388,2755.8,2755.1,4.56083651]
[1724538341782,0.75251388,2755.9,2755.1,10.29993651]
[1724538342152,3.62873,2755.8,2755.1,0.93120651]
[1724538342350,3.62873,2755.8,2755.0,3.362983]
[1724538342787,0.75251388,2755.9,2755.0,3.0]
[1724538342938,9.36942,2755.4,2754.9,5.31933212]
[1724538343334,10.12193388,2755.4,2754.9,5.31933212]
[1724538343570,9.36942,2755.4,2754.9,5.31933212]
[1724538344037,3.62938,2755.3,2754.9,5.31933212]
[1724538344252,9.36942,2755.4,2754.9,5.31933212]
[1724538344253,5.7401,2755.4,2754.9,5.31933212]